bitfinex/quotes_BTCUSD_20230113
["timestamp","ask_amount","ask_price","bid_price","bid_amount"]
[1673585370038,0.28790787,18851.0,18850.0,1.91124774]
[1673585370293,0.28790785,18851.0,18850.0,1.91124774]
[1673585370527,0.28790785,18851.0,18850.0,1.75256257]
[1673585371041,0.28778946,18851.0,18850.0,1.75256257]
[1673585372030,0.28778946,18851.0,18850.0,1.75266304]
[1673585372278,0.28778946,18851.0,18850.0,1.75256257]
[1673585375000,0.28778946,18851.0,18850.0,1.45256257]
[1673585375971,0.28778946,18851.0,18850.0,1.45266304]
[1673585376219,0.28778946,18851.0,18850.0,1.45256257]
[1673585377476,0.28778946,18851.0,18850.0,1.45266304]
[1673585377717,0.28778946,18851.0,18850.0,1.75266304]
[1673585378679,0.28778946,18851.0,18850.0,1.91124774]
[1673585379163,0.28778946,18851.0,18850.0,1.75256257]
[1673585379410,0.28778946,18851.0,18850.0,1.47286304]
[1673585379669,0.28778946,18851.0,18850.0,1.63144774]
[1673585380133,0.28778946,18851.0,18850.0,1.47276257]
[1673585382127,0.28778946,18851.0,18850.0,1.47286304]
[1673585382635,0.28778946,18851.0,18850.0,1.47276257]
[1673585383134,0.28778946,18851.0,18850.0,1.63154821]
[1673585383379,0.28778946,18851.0,18850.0,1.47286304]
[1673585383626,0.28778946,18851.0,18850.0,1.47276257]
[1673585387190,0.28778946,18851.0,18850.0,1.63144774]
[1673585387989,0.28778946,18851.0,18850.0,1.63154821]
[1673585388457,0.28778946,18851.0,18850.0,1.63144774]
[1673585388935,0.28778946,18851.0,18850.0,1.63154821]
[1673585389152,0.28778946,18851.0,18850.0,1.63144774]
[1673585390072,0.28778946,18851.0,18850.0,1.63154821]
[1673585390308,0.28778663,18851.0,18850.0,1.86960318]
[1673585390534,0.28778663,18851.0,18850.0,1.86950271]
[1673585391050,0.28772344,18851.0,18850.0,1.86960318]
[1673585391268,0.28772344,18851.0,18850.0,1.86950271]
[1673585391730,0.28772344,18851.0,18850.0,1.63144774]
[1673585392675,0.28772344,18851.0,18850.0,1.86960318]
[1673585392921,0.28772344,18851.0,18850.0,1.86950271]
[1673585394336,0.28772344,18851.0,18850.0,1.93043461]
[1673585395042,0.28772344,18851.0,18850.0,1.93053508]
[1673585395495,0.28772344,18851.0,18850.0,1.93043461]
[1673585397448,0.28772344,18851.0,18850.0,1.63144774]
[1673585397687,0.28772344,18851.0,18850.0,1.86950271]
[1673585398392,0.28772344,18851.0,18850.0,1.93064868]
[1673585398627,0.28772344,18851.0,18850.0,1.93074915]
[1673585398873,0.28772344,18851.0,18850.0,1.93064868]
[1673585399902,0.28772344,18851.0,18850.0,1.77206398]
[1673585400302,0.28772344,18851.0,18850.0,1.93090584]
[1673585401500,0.28772344,18851.0,18850.0,1.3317049]
[1673585401726,0.28772344,18851.0,18850.0,1.6317049]
[1673585405593,0.28772344,18851.0,18850.0,1.86975987]
[1673585406324,0.28772344,18851.0,18850.0,1.92961659]
[1673585409600,0.28772344,18851.0,18850.0,1.93136177]
[1673585409849,0.28772344,18851.0,18850.0,2.08991899]
[1673585410374,0.28772344,18851.0,18850.0,2.08817381]
[1673585410641,0.28642596,18851.0,18850.0,2.08991899]
[1673585410867,0.28772811,18851.0,18850.0,2.08817381]
[1673585413319,0.28772811,18851.0,18850.0,1.92973909]
[1673585413808,0.28772811,18851.0,18850.0,2.08817381]
[1673585414537,0.28772811,18851.0,18850.0,1.92974025]
[1673585415288,0.28772811,18851.0,18850.0,1.56988353]
[1673585415535,0.28772811,18851.0,18850.0,1.33182856]
[1673585416832,0.28772811,18851.0,18850.0,1.56988353]
[1673585417081,0.28772811,18851.0,18850.0,1.92923646]
[1673585417341,0.28772811,18851.0,18850.0,1.86988353]
[1673585418102,0.28772811,18851.0,18850.0,1.9272992]
[1673585418360,0.28772811,18851.0,18850.0,1.92923593]
[1673585418862,0.28772811,18851.0,18850.0,2.08766949]
[1673585419127,0.28763656,18851.0,18850.0,1.92907517]
[1673585419385,0.28763656,18851.0,18850.0,2.57695881]
[1673585419661,0.28763656,18851.0,18850.0,2.25887317]
[1673585420886,0.28763656,18851.0,18850.0,2.57689911]
[1673585421133,0.28763656,18851.0,18850.0,2.25887317]
[1673585421345,0.28763656,18851.0,18850.0,2.57496209]
[1673585421638,0.28763656,18851.0,18850.0,2.25720706]
[1673585421889,0.28763656,18851.0,18850.0,2.57523343]
[1673585422140,0.28763656,18851.0,18850.0,2.57512027]
[1673585422392,0.28763656,18851.0,18850.0,2.57484965]
[1673585422615,0.28763656,18851.0,18850.0,2.57512027]
[1673585425143,0.28763656,18851.0,18850.0,1.84836207]
[1673585425626,0.28763656,18851.0,18850.0,2.24532227]
[1673585425887,0.28763656,18851.0,18850.0,2.08684213]
[1673585426129,0.28763656,18851.0,18850.0,2.08784213]
[1673585427164,0.28763656,18851.0,18850.0,2.41764013]
[1673585427924,0.28763656,18851.0,18850.0,2.17916007]
[1673585428178,0.28763656,18851.0,18850.0,2.57512027]
[1673585428427,0.28763656,18851.0,18850.0,2.17816007]
[1673585429183,0.28763656,18851.0,18850.0,2.41636129]
[1673585429424,0.28763656,18851.0,18850.0,2.08656329]
[1673585429676,0.28763656,18851.0,18850.0,2.08790251]
[1673585429923,0.28763656,18851.0,18850.0,2.08656329]
[1673585430413,0.28763656,18851.0,18850.0,2.41636129]
[1673585430664,0.28763656,18851.0,18850.0,2.41770051]
[1673585431136,0.28763401,18851.0,18850.0,2.41770051]
[1673585431378,0.28763401,18851.0,18850.0,2.17922867]
[1673585432052,0.28763401,18851.0,18850.0,2.57618887]
[1673585432839,0.28763401,18851.0,18850.0,2.17922867]
[1673585433604,0.28763401,18851.0,18850.0,2.57618887]
[1673585433860,0.28763401,18851.0,18850.0,2.17922867]
[1673585434123,0.28763401,18851.0,18850.0,1.84943067]
[1673585434369,0.28763401,18851.0,18850.0,2.08655226]
[1673585434616,0.28763401,18851.0,18850.0,2.41635026]
[1673585435122,0.28763401,18851.0,18850.0,2.57484965]
[1673585435611,0.28763401,18851.0,18850.0,2.5751737]
[1673585436267,0.28763401,18851.0,18850.0,2.57484965]
[1673585436789,0.28763401,18851.0,18850.0,2.5751737]
[1673585437293,0.28763401,18851.0,18850.0,2.57484965]
[1673585438062,0.28763401,18851.0,18850.0,2.56144596]
[1673585439073,0.28763401,18851.0,18850.0,2.70214596]
[1673585440960,0.28763401,18851.0,18850.0,2.70062946]
[1673585441170,0.28763401,18851.0,18850.0,2.30366926]
[1673585441345,0.28763401,18851.0,18850.0,2.30358945]
[1673585442313,0.28763401,18851.0,18850.0,2.30518576]
[1673585444466,0.28763401,18851.0,18850.0,2.30618576]
[1673585444719,0.28763401,18851.0,18850.0,2.30518576]
[1673585446158,0.28763401,18851.0,18850.0,2.70214596]
[1673585446665,0.28763401,18851.0,18850.0,2.70206069]
[1673585448435,0.28763401,18851.0,18850.0,2.21217217]
[1673585448678,0.28763401,18851.0,18850.0,1.97370618]
[1673585448921,0.28763401,18851.0,18850.0,2.37066638]
[1673585449662,0.28763401,18851.0,18850.0,2.37074619]
[1673585450610,0.28763401,18851.0,18850.0,1.97378599]
[1673585450963,0.28763401,18851.0,18850.0,2.21217849]
[1673585451452,0.28763144,18851.0,18850.0,2.21217849]
[1673585452488,0.28763144,18851.0,18850.0,2.54197649]
[1673585452744,0.28763144,18851.0,18850.0,2.21217849]
[1673585452982,0.28763144,18851.0,18850.0,2.54197649]
[1673585453299,0.28763144,18851.0,18850.0,2.2140319]
[1673585453423,0.28763144,18851.0,18850.0,2.5438299]
[1673585453660,0.28763144,18851.0,18850.0,2.54197649]
[1673585453879,0.28763144,18851.0,18850.0,2.21217849]
[1673585454116,0.28763144,18851.0,18850.0,2.5438299]
[1673585454332,0.28763144,18851.0,18850.0,2.54197649]
[1673585454511,0.27263144,18851.0,18850.0,2.51497649]
[1673585454759,0.27963144,18851.0,18850.0,2.51897649]
[1673585454932,0.27963144,18851.0,18850.0,2.51497649]
[1673585455145,0.36063144,18851.0,18850.0,2.51797649]
[1673585455359,0.36063144,18851.0,18850.0,2.18817849]
[1673585455791,0.36063144,18851.0,18850.0,2.34666638]
[1673585456265,0.36063144,18851.0,18850.0,2.34675904]
[1673585456686,0.36063144,18851.0,18850.0,2.18824242]
[1673585457223,0.36063144,18851.0,18850.0,1.87030132]
[1673585457440,0.36063144,18851.0,18850.0,2.18833508]
[1673585457647,0.36063144,18851.0,18850.0,2.18824242]
[1673585458219,0.36063144,18851.0,18850.0,2.18833508]
[1673585458713,0.36054579,18851.0,18850.0,2.18833508]
[1673585458928,0.36054579,18851.0,18850.0,2.04763508]
[1673585459359,0.36054579,18851.0,18850.0,2.37743308]
[1673585459885,0.36054579,18851.0,18850.0,2.53585704]
[1673585460622,0.36054579,18851.0,18850.0,1.88811794]
[1673585460956,0.36054579,18851.0,18850.0,2.20621016]
[1673585461222,0.36054579,18851.0,18850.0,2.2061175]
[1673585464822,0.36054579,18851.0,18850.0,2.20621016]
[1673585465560,0.36054579,18851.0,18850.0,2.2061175]
[1673585466833,0.36054579,18851.0,18850.0,2.20621016]
[1673585467081,0.36054579,18851.0,18850.0,1.88811794]
[1673585467743,0.36054579,18851.0,18850.0,1.88802528]
[1673585467999,0.36054579,18851.0,18850.0,2.20620903]
[1673585468452,0.36054579,18851.0,18850.0,1.49115774]
[1673585468718,0.36054579,18851.0,18850.0,2.21856217]
[1673585468964,0.36054579,18851.0,18850.0,1.96165574]
[1673585470162,0.36054579,18851.0,18850.0,1.96142766]
[1673585471733,0.36054853,18851.0,18850.0,1.96142766]
[1673585477890,0.36054853,18851.0,18850.0,1.43162966]
[1673585478695,0.36054853,18851.0,18850.0,1.76142766]
[1673585480414,0.36054853,18851.0,18850.0,1.761335]
[1673585480928,0.36054853,18851.0,18850.0,2.15875602]
[1673585481408,0.36054853,18851.0,18850.0,1.76142326]
[1673585482449,0.36054853,18851.0,18850.0,2.15864525]
[1673585482699,0.36054853,18851.0,18850.0,2.15873351]
[1673585483906,0.36054853,18851.0,18850.0,2.47530817]
[1673585484665,0.36054853,18851.0,18850.0,2.51905531]
[1673585484901,0.36054853,18851.0,18850.0,2.51923159]
[1673585485389,0.36054853,18851.0,18850.0,2.51905531]
[1673585486129,0.36054853,18851.0,18850.0,2.51923159]
[1673585487115,0.36054853,18851.0,18850.0,2.51905531]
[1673585487342,0.36054853,18851.0,18850.0,2.51923159]
[1673585488583,0.36054853,18851.0,18850.0,2.47548445]
[1673585489042,0.36054853,18851.0,18850.0,2.61618445]
[1673585489869,0.36054853,18851.0,18850.0,2.29832645]
[1673585490147,0.27254853,18851.0,18850.0,2.29532645]
[1673585490359,0.28554853,18851.0,18850.0,2.29932645]
[1673585491933,0.28555184,18851.0,18850.0,2.29932645]
[1673585494837,0.28555184,18851.0,18850.0,1.9020162]
[1673585498310,0.28555184,18851.0,18850.0,2.37847767]
[1673585498746,0.28555184,18851.0,18850.0,1.9020162]
[1673585499333,0.27255184,18851.0,18850.0,1.8980162]
[1673585499455,0.28555184,18851.0,18850.0,1.9020162]
[1673585499944,0.28555184,18851.0,18850.0,2.37847767]
[1673585500188,0.28555184,18851.0,18850.0,1.9020162]
[1673585500406,0.28555184,18851.0,18850.0,2.37847767]
[1673585501085,0.28555184,18851.0,18850.0,1.9020162]
[1673585502332,0.28555184,18851.0,18850.0,2.37847767]
[1673585502553,0.28555184,18851.0,18850.0,1.9020162]
[1673585504461,0.28555184,18851.0,18850.0,2.37847767]
[1673585505771,0.28555184,18851.0,18850.0,1.9020162]
[1673585505964,0.28555184,18851.0,18850.0,2.37847767]
[1673585506375,0.28555184,18851.0,18850.0,1.9020162]
[1673585506609,0.28555184,18851.0,18850.0,2.37847767]
[1673585508071,0.28549014,18851.0,18850.0,2.37847767]
[1673585509567,0.28549014,18851.0,18850.0,1.57204192]
[1673585509816,0.28549014,18851.0,18850.0,1.5721262]
[1673585510047,0.28549014,18851.0,18850.0,1.96960036]
[1673585510731,0.28549014,18851.0,18850.0,1.5721262]
[1673585510998,0.28549014,18851.0,18850.0,1.96960095]
[1673585511241,0.28549014,18851.0,18850.0,2.29939895]
[1673585512206,0.28548422,18851.0,18850.0,2.29939895]
[1673585512934,0.28548422,18851.0,18850.0,1.9019242]
[1673585514639,0.28548422,18851.0,18850.0,1.5721262]
[1673585515028,0.28548422,18851.0,18850.0,1.96951318]
[1673585515279,0.28548422,18851.0,18850.0,2.28749819]
[1673585515769,0.28548422,18851.0,18850.0,2.27962119]
[1673585516546,0.28548422,18851.0,18850.0,2.27979287]
[1673585516794,0.28548422,18851.0,18850.0,2.27962119]
[1673585518030,0.28548422,18851.0,18850.0,2.60941919]
[1673585518566,0.28548422,18851.0,18850.0,2.60959087]
[1673585518832,0.28548422,18851.0,18850.0,2.60941919]
[1673585519085,0.28548422,18851.0,18850.0,2.46871919]
[1673585519323,0.28548422,18851.0,18850.0,2.13892119]
[1673585520063,0.28548422,18851.0,18850.0,1.97989529]
[1673585520558,0.28548422,18851.0,18850.0,2.13892119]
[1673585520806,0.28548422,18851.0,18850.0,1.67989522]
[1673585521044,0.28548422,18851.0,18850.0,1.97989522]
[1673585521260,0.28548422,18851.0,18850.0,1.98006394]
[1673585521512,0.28548422,18851.0,18850.0,1.97989641]
[1673585522503,0.28548422,18851.0,18850.0,1.68017722]
[1673585523449,0.28548422,18851.0,18850.0,1.68042897]
[1673585523711,0.28548422,18851.0,18850.0,1.68017722]
[1673585524702,0.28548422,18851.0,18850.0,1.68042897]
[1673585524960,0.28548422,18851.0,18850.0,1.68017722]
[1673585525441,0.28548422,18851.0,18850.0,1.62276155]
[1673585525661,0.28548422,18851.0,18850.0,1.66187041]
[1673585525868,0.28548422,18851.0,18850.0,1.62276155]
[1673585526906,0.28548422,18851.0,18850.0,1.66212104]
[1673585527153,0.28548422,18851.0,18850.0,1.66186929]
[1673585527675,0.28548422,18851.0,18850.0,1.38431507]
[1673585529847,0.28548422,18851.0,18850.0,1.66186168]
[1673585530680,0.28548422,18851.0,18850.0,1.50314761]
[1673585530938,0.28548422,18851.0,18850.0,1.52095161]
[1673585531196,0.28548422,18851.0,18850.0,1.52069986]
[1673585531447,0.28548422,18851.0,18850.0,1.67957449]
[1673585531723,0.28548422,18851.0,18850.0,1.52095161]
[1673585531969,0.28548422,18851.0,18850.0,1.67956861]
[1673585532465,0.28548668,18851.0,18850.0,1.60023839]
[1673585532726,0.28548668,18851.0,18850.0,2.1683324]
[1673585532972,0.28548668,18851.0,18850.0,1.93003639]
[1673585533215,0.28548668,18851.0,18850.0,2.32750765]
[1673585536954,0.28548668,18851.0,18850.0,1.93003639]
[1673585537415,0.26548668,18851.0,18850.0,2.32750765]
[1673585538729,0.26548668,18851.0,18850.0,1.99770965]
[1673585540472,0.26548668,18851.0,18850.0,1.99805686]
[1673585540719,0.26548668,18851.0,18850.0,1.99770965]
[1673585541492,0.26548668,18851.0,18850.0,2.32750765]
[1673585543216,0.26548668,18851.0,18850.0,2.00952264]
[1673585544898,0.26548668,18851.0,18850.0,1.67972464]
[1673585546410,0.26548668,18851.0,18850.0,2.00952264]
[1673585548459,0.26548668,18851.0,18850.0,1.61205138]
[1673585549193,0.26548668,18851.0,18850.0,1.75175138]
[1673585552742,0.26548903,18851.0,18850.0,1.75175138]
[1673585553721,0.26548903,18851.0,18850.0,1.8192773]
[1673585554211,0.26548903,18851.0,18850.0,2.1490753]
[1673585559047,0.26548903,18851.0,18850.0,2.2891753]
[1673585562375,0.26539172,18851.0,18850.0,2.2891753]
[1673585565633,0.26539172,18851.0,18850.0,1.89185138]
[1673585565861,0.26539172,18851.0,18850.0,2.28924679]
[1673585566075,0.26539172,18851.0,18850.0,1.89185138]
[1673585569138,0.26539172,18851.0,18850.0,1.75215138]
[1673585569385,0.26539172,18851.0,18850.0,1.42235338]
[1673585573096,0.26539061,18851.0,18850.0,1.42235338]
[1673585574055,0.26539061,18851.0,18850.0,1.81994897]
[1673585574544,0.26539061,18851.0,18850.0,2.13803139]
[1673585574800,0.26539061,18851.0,18850.0,1.81994897]
[1673585575551,0.26539061,18851.0,18850.0,2.13800601]
[1673585576836,0.26539061,18851.0,18850.0,2.14974697]
[1673585577084,0.26539061,18851.0,18850.0,1.81994897]
[1673585577327,0.26539061,18851.0,18850.0,2.13800614]
[1673585579076,0.26539061,18851.0,18850.0,1.99790614]
[1673585580563,0.26539061,18851.0,18850.0,1.60031055]
[1673585580806,0.26539061,18851.0,18850.0,1.83882922]
[1673585581048,0.26539061,18851.0,18850.0,1.99790614]
[1673585581792,0.26539061,18851.0,18850.0,1.83883054]
[1673585584259,0.26539061,18851.0,18850.0,1.83917775]
[1673585584501,0.26532935,18851.0,18850.0,1.83883054]
[1673585587718,0.26532935,18851.0,18850.0,1.99790614]
[1673585588762,0.26239675,18851.0,18850.0,1.99790614]
[1673585592335,0.26239675,18851.0,18850.0,1.99779918]
[1673585593338,0.26239323,18851.0,18850.0,1.99779918]
[1673585601206,0.26239323,18851.0,18850.0,1.60020359]
[1673585601471,0.26239323,18851.0,18850.0,1.83868061]
[1673585610045,0.26239323,18851.0,18850.0,1.83873136]
[1673585611545,0.26239323,18851.0,18850.0,1.83893436]
[1673585612558,0.26239323,18851.0,18850.0,1.60040659]
[1673585612804,0.26230412,18851.0,18850.0,1.8389585]
[1673585613816,0.26230668,18851.0,18850.0,1.8389585]
[1673585614910,0.26230668,18851.0,18850.0,1.60040659]
[1673585615188,0.26230668,18851.0,18850.0,1.8389758]
[1673585615434,0.26230668,18851.0,18850.0,1.60040659]
[1673585616173,0.26230668,18851.0,18850.0,1.83897459]
[1673585617950,0.26230668,18851.0,18850.0,1.99800218]
[1673585619161,0.26230668,18851.0,18850.0,1.99780236]
[1673585620417,0.26230668,18851.0,18850.0,1.60020677]
[1673585620639,0.26230668,18851.0,18850.0,1.83877541]
[1673585620932,0.26177292,18851.0,18850.0,1.83877541]
[1673585621679,0.26177292,18851.0,18850.0,1.99780236]
[1673585622430,0.26177292,18851.0,18850.0,1.60020677]
[1673585622679,0.26177292,18851.0,18850.0,1.99780236]
[1673585623179,0.26177292,18851.0,18850.0,2.53906917]
[1673585623428,0.26177292,18851.0,18850.0,2.50861603]
[1673585623933,0.26177292,18851.0,18850.0,2.56399053]
[1673585624184,0.26177292,18851.0,18850.0,2.92424167]
[1673585624434,0.26177292,18851.0,18850.0,2.4477802]
[1673585624897,0.26177292,18851.0,18850.0,2.92454751]
[1673585625183,0.26177292,18851.0,18850.0,2.56429637]
[1673585625431,0.26177292,18851.0,18850.0,2.42439637]
[1673585625930,0.26177292,18851.0,18850.0,2.41208237]
[1673585626428,0.26177292,18851.0,18850.0,1.93531506]
[1673585629612,0.26177292,18851.0,18850.0,2.33252791]
[1673585630876,0.26177292,18851.0,18850.0,2.33260885]
[1673585631867,0.26177292,18851.0,18850.0,2.33253377]
[1673585633970,0.26177393,18851.0,18850.0,2.33253377]
[1673585638384,0.26177393,18851.0,18850.0,2.29557206]
[1673585638637,0.26177393,18851.0,18850.0,1.93532092]
[1673585642334,0.26177393,18851.0,18850.0,2.33239212]
[1673585642593,0.26177393,18851.0,18850.0,2.33231503]
[1673585642834,0.26177393,18851.0,18850.0,2.37601565]
[1673585643319,0.26177393,18851.0,18850.0,1.93523998]
[1673585643597,0.26177393,18851.0,18850.0,1.93539397]
[1673585644083,0.26177393,18851.0,18850.0,2.33245673]
[1673585644377,0.26177393,18851.0,18850.0,2.32016984]
[1673585644579,0.26177393,18851.0,18850.0,2.32032383]
[1673585644860,0.26177393,18851.0,18850.0,2.69382245]
[1673585645866,0.26177393,18851.0,18850.0,2.65012183]
[1673585649049,0.26177393,18851.0,18850.0,2.33245673]
[1673585650025,0.26177393,18851.0,18850.0,2.33230274]
[1673585651098,0.26177393,18851.0,18850.0,2.00250474]
[1673585652307,0.26177393,18851.0,18850.0,2.00274115]
[1673585652554,0.26177393,18851.0,18850.0,2.33253915]
[1673585654266,0.26177207,18851.0,18850.0,2.33253915]
[1673585655015,0.26167384,18851.0,18850.0,2.33253915]
[1673585655497,0.26167384,18851.0,18850.0,2.33230274]
[1673585655768,0.26167384,18851.0,18850.0,2.33253915]
[1673585656509,0.26167384,18851.0,18850.0,2.33136714]
[1673585657952,0.26167384,18851.0,18850.0,2.33113073]
[1673585659031,0.26167384,18851.0,18850.0,1.94595823]
[1673585659770,0.26167384,18851.0,18850.0,2.26381226]
[1673585660012,0.26167384,18851.0,18850.0,2.27575623]
[1673585660229,0.26167384,18851.0,18850.0,2.59361023]
[1673585660445,0.26167384,18851.0,18850.0,2.27575623]
[1673585660950,0.26167384,18851.0,18850.0,2.27585366]
[1673585661493,0.26167384,18851.0,18850.0,2.2638616]
[1673585661751,0.26167384,18851.0,18850.0,2.5936596]
[1673585662009,0.26167384,18851.0,18850.0,2.59375703]
[1673585662486,0.26167384,18851.0,18850.0,2.27575623]
[1673585662731,0.26167384,18851.0,18850.0,1.94595823]
[1673585663222,0.26167384,18851.0,18850.0,1.94605566]
[1673585663615,0.26167384,18851.0,18850.0,1.94595823]
[1673585664063,0.26167384,18851.0,18850.0,2.27575623]
[1673585664981,0.26167384,18851.0,18850.0,1.94595823]
[1673585666640,0.26167384,18851.0,18850.0,1.54889547]
[1673585667312,0.26167384,18851.0,18850.0,1.94640086]
[1673585667555,0.26167384,18851.0,18850.0,2.27619886]
[1673585667764,0.26167384,18851.0,18850.0,2.27637959]
[1673585668225,0.26167384,18851.0,18850.0,2.27619886]
[1673585668459,0.26167384,18851.0,18850.0,1.87869347]
[1673585669681,0.26167384,18851.0,18850.0,1.94641421]
[1673585669911,0.26167384,18851.0,18850.0,2.27621221]
[1673585670158,0.26167384,18851.0,18850.0,2.2763955]
[1673585670397,0.26167384,18851.0,18850.0,2.27621477]
[1673585670633,0.26167384,18851.0,18850.0,1.87869347]
[1673585670874,0.26167384,18851.0,18850.0,1.94640905]
[1673585671183,0.26167384,18851.0,18850.0,1.5490762]
[1673585671433,0.26167384,18851.0,18850.0,1.8788742]
[1673585672205,0.26167384,18851.0,18850.0,1.87869347]
[1673585674442,0.26167269,18851.0,18850.0,1.87869347]
[1673585675176,0.26167269,18851.0,18850.0,2.35546078]
[1673585675630,0.26167269,18851.0,18850.0,2.35564151]
[1673585678628,0.26167269,18851.0,18850.0,2.62088151]
[1673585679150,0.26167269,18851.0,18850.0,2.67625601]
[1673585680378,0.26159477,18851.0,18850.0,2.67625601]
[1673585686832,0.26159477,18851.0,18850.0,2.6761639]
[1673585688029,0.26159477,18851.0,18850.0,2.19939659]
[1673585688289,0.26159477,18851.0,18850.0,2.6761639]
[1673585689050,0.26059477,18851.0,18850.0,2.6761639]
[1673585692025,0.26059477,18851.0,18850.0,2.8161639]
[1673585693500,0.24759477,18851.0,18850.0,2.8121639]
[1673585693782,0.38259477,18851.0,18850.0,2.8131639]
[1673585694975,0.38259714,18851.0,18850.0,2.8131639]
[1673585697579,0.38259714,18851.0,18850.0,2.19671586]
[1673585697763,0.38259714,18851.0,18850.0,1.86691786]
[1673585697908,0.38259714,18851.0,18850.0,1.60167786]
[1673585698160,0.38259714,18851.0,18850.0,1.93147586]
[1673585698342,0.38259714,18851.0,18850.0,1.60167786]
[1673585699053,0.38259714,18851.0,18850.0,1.93174916]
[1673585701193,0.38259714,18851.0,18850.0,2.40851647]
[1673585709597,0.38259714,18851.0,18850.0,2.40824317]
[1673585710309,0.38259714,18851.0,18850.0,2.07844517]
[1673585711790,0.38259714,18851.0,18850.0,1.60167786]
[1673585712433,0.38247802,18851.0,18850.0,1.93147586]
[1673585713463,0.38247802,18851.0,18850.0,2.19699916]
[1673585714422,0.38247802,18851.0,18850.0,1.86720116]
[1673585715143,0.38247539,18851.0,18850.0,1.86720116]
[1673585715632,0.38247539,18851.0,18850.0,2.19699916]
[1673585716371,0.38247539,18851.0,18850.0,1.86720116]
[1673585716621,0.38247539,18851.0,18850.0,2.19699916]
[1673585717121,0.38247539,18851.0,18850.0,1.93174916]
[1673585717363,0.38247539,18851.0,18850.0,1.46125116]
[1673585722719,0.38247539,18851.0,18850.0,1.50495178]
[1673585724501,0.38247539,18851.0,18850.0,1.50467848]
[1673585725536,0.38247539,18851.0,18850.0,1.46097786]
[1673585725783,0.38247539,18851.0,18850.0,1.50467848]
[1673585726795,0.38247539,18851.0,18850.0,1.72622786]
[1673585727803,0.38247539,18851.0,18850.0,1.76992848]
[1673585728048,0.38247539,18851.0,18850.0,1.77020178]
[1673585728788,0.38247539,18851.0,18850.0,1.72650116]
[1673585729046,0.38247539,18851.0,18850.0,1.58650116]
[1673585733170,0.38247539,18851.0,18850.0,1.65104916]
[1673585733410,0.43216379,18851.0,18850.0,1.58650116]
[1673585734874,0.43216379,18851.0,18850.0,1.91629916]
[1673585735349,0.43216506,18851.0,18850.0,1.91629916]
[1673585736435,0.43216506,18851.0,18850.0,1.65104916]
[1673585737665,0.43216506,18851.0,18850.0,1.32125116]
[1673585737878,0.43216506,18851.0,18850.0,1.65104916]
[1673585738976,0.43216506,18851.0,18850.0,1.32125116]
[1673585740056,0.43216506,18851.0,18850.0,1.65104916]
[1673585740547,0.43216506,18851.0,18850.0,1.91629916]
[1673585741430,0.43216506,18851.0,18850.0,1.65104916]
[1673585743043,0.43216506,18851.0,18850.0,1.32125116]
[1673585745774,0.43216506,18851.0,18850.0,1.65104916]
[1673585747902,0.43216506,18851.0,18850.0,2.12781647]
[1673585748663,0.43216506,18851.0,18850.0,1.65104916]
[1673585748914,0.43216506,18851.0,18850.0,2.12781647]
[1673585752012,0.43216506,18851.0,18850.0,2.17151709]
[1673585752578,0.43216506,18851.0,18850.0,1.69474978]
[1673585755732,0.43216403,18851.0,18850.0,1.69474978]
[1673585756479,0.43216403,18851.0,18850.0,2.12781647]
[1673585756729,0.43216403,18851.0,18850.0,1.65104916]
[1673585756945,0.43209298,18851.0,18850.0,2.12781647]
[1673585757086,0.43209298,18851.0,18850.0,1.65104916]
[1673585757461,0.43209298,18851.0,18850.0,2.12781647]
[1673585757712,0.43209298,18851.0,18850.0,1.65104916]
[1673585760430,0.43209298,18851.0,18850.0,1.65077586]
[1673585760669,0.43209298,18851.0,18850.0,1.32097786]
[1673585761900,0.43209298,18851.0,18850.0,1.65077586]
[1673585764120,0.43209298,18851.0,18850.0,1.65104916]
[1673585765047,0.43209298,18851.0,18850.0,2.12781647]
[1673585770158,0.43209298,18851.0,18850.0,1.79801847]
[1673585770627,0.43209298,18851.0,18850.0,2.06325847]
[1673585772941,0.43209298,18851.0,18850.0,2.39305647]
[1673585773404,0.43209298,18851.0,18850.0,2.06325847]
[1673585774173,0.43209298,18851.0,18850.0,2.39305647]
[1673585775943,0.43209337,18851.0,18850.0,2.43675709]
[1673585778615,0.43199733,18851.0,18850.0,2.43675709]
[1673585779113,0.43199733,18851.0,18850.0,2.57745709]
[1673585779902,0.43199733,18851.0,18850.0,2.57544072]
[1673585781888,0.43199733,18851.0,18850.0,2.62490611]
[1673585782164,0.43199733,18851.0,18850.0,2.90570611]
[1673585782881,0.43199733,18851.0,18850.0,2.86402186]
[1673585783132,0.43199733,18851.0,18850.0,2.86302186]
[1673585783427,0.29699733,18851.0,18850.0,2.89902186]
[1673585783679,0.30599733,18851.0,18850.0,2.89902186]
[1673585784927,0.30599733,18851.0,18850.0,2.85992173]
[1673585792556,0.30599733,18851.0,18850.0,2.59468173]
[1673585792557,0.30599733,18851.0,18850.0,2.85989173]
[1673585794360,0.30599733,18851.0,18850.0,3.33651565]
[1673585795437,0.30599733,18851.0,18850.0,3.33650917]
[1673585795918,0.30599733,18851.0,18850.0,2.85989173]
[1673585796406,0.30600179,18851.0,18850.0,2.85989173]
[1673585796650,0.30600179,18851.0,18850.0,3.3365095]
[1673585796908,0.30600179,18851.0,18850.0,2.85989173]
[1673585799826,0.30600179,18851.0,18850.0,2.71979173]
[1673585800081,0.30600179,18851.0,18850.0,3.19642411]
[1673585800370,0.30593553,18851.0,18850.0,3.19642411]
[1673585801592,0.30593553,18851.0,18850.0,3.1961523]
[1673585803373,0.30593553,18851.0,18850.0,2.9309423]
[1673585804110,0.30593553,18851.0,18850.0,2.97004297]
[1673585806678,0.30593553,18851.0,18850.0,3.01172722]
[1673585807404,0.30593553,18851.0,18850.0,2.97004297]
[1673585808874,0.30593553,18851.0,18850.0,2.97010262]
[1673585809117,0.30593553,18851.0,18850.0,2.97010287]
[1673585809365,0.30593553,18851.0,18850.0,2.49341059]
[1673585810352,0.30593553,18851.0,18850.0,2.97011475]
[1673585810593,0.30593553,18851.0,18850.0,2.49341059]
[1673585810818,0.30593553,18851.0,18850.0,3.23534499]
[1673585811615,0.30593553,18851.0,18850.0,2.75864059]
[1673585814053,0.27534198,18851.0,18850.0,3.46279322]
[1673585815893,0.27534198,18851.0,18850.0,3.19756322]
[1673585816150,0.27534198,18851.0,18850.0,3.46277322]
[1673585816634,0.27453418,18851.0,18850.0,3.46277322]
[1673585819094,0.27453418,18851.0,18850.0,2.49341059]
[1673585819832,0.27453418,18851.0,18850.0,2.75864059]
[1673585820052,0.27453418,18851.0,18850.0,3.46279322]
[1673585820328,0.27453418,18851.0,18850.0,2.75864059]
[1673585820574,0.27453418,18851.0,18850.0,3.46279322]
[1673585825332,0.27453418,18851.0,18850.0,3.42369255]
[1673585826340,0.26553418,18851.0,18850.0,3.38769255]
[1673585827604,0.40053418,18851.0,18850.0,3.39069255]
[1673585829087,0.40053418,18851.0,18850.0,3.24999255]
[1673585829330,0.40053418,18851.0,18850.0,2.54583992]
[1673585829545,0.40053418,18851.0,18850.0,3.24999255]
[1673585836730,0.40053544,18851.0,18850.0,3.24999255]
[1673585838261,0.40046277,18851.0,18850.0,3.24999255]
[1673585840871,0.40046277,18851.0,18850.0,2.54583992]
[1673585841632,0.40046277,18851.0,18850.0,3.24999255]
[1673585848866,0.40046277,18851.0,18850.0,3.24997255]